bitfinex/quotes_ETHUSD_20220310
["timestamp","ask_amount","ask_price","bid_price","bid_amount"]
[1646932866333,1.14765974,2593.8,2593.7,0.00343808]
[1646932866534,1.14765974,2593.8,2593.7,0.44144872]
[1646932866734,0.71374191,2593.9,2593.7,0.44144872]
[1646932866934,0.71374191,2593.9,2593.7,0.43801064]
[1646932867336,1.14765974,2593.9,2593.7,0.43801064]
[1646932867536,1.86140165,2593.9,2593.7,0.43801064]
[1646932867838,5.36140165,2593.9,2593.7,0.43801064]
[1646932868134,1.14765974,2593.8,2593.7,0.43801064]
[1646932868535,1.14765974,2593.8,2593.7,0.44144875]
[1646932868942,1.14765974,2593.8,2593.7,2.36999875]
[1646932869141,0.71374191,2594.1,2593.8,0.07699262]
[1646932869342,1.15886264,2594.0,2593.9,0.43801064]
[1646932869888,1.87260455,2594.3,2593.9,0.43801064]
[1646932870090,1.15886264,2594.2,2594.0,0.42580241]
[1646932870291,1.15886264,2594.1,2594.0,0.42580241]
[1646932870493,1.15886264,2594.1,2594.0,0.51421501]
[1646932870690,1.15886264,2594.2,2594.0,0.51421501]
[1646932870890,1.15886264,2594.1,2594.0,0.09185061]
[1646932871190,1.87604191,2594.4,2594.0,0.51750915]
[1646932871191,1.15886264,2594.3,2594.0,0.51750915]
[1646932871391,1.15886264,2594.3,2594.1,0.42565854]
[1646932871791,1.15886264,2594.3,2594.2,0.0897596]
[1646932871990,1.15886264,2594.3,2594.2,0.51541814]
[1646932872391,0.71374191,2594.5,2594.2,0.51541814]
[1646932872591,1.16229987,2594.6,2594.3,1.38964854]
[1646932872592,0.71717914,2594.6,2594.3,1.38964854]
[1646932872791,0.71717914,2594.6,2594.4,0.496846]
[1646932872792,1.15886264,2594.5,2594.4,0.496846]
[1646932873191,1.15886264,2594.5,2594.4,2.35319714]
[1646932873392,0.00343744,2594.6,2594.5,0.08457009]
[1646932873654,0.00148991,2595.4,2594.5,0.27727009]
[1646932873844,0.3854,2595.6,2594.7,0.3]
[1646932873845,0.00148991,2595.2,2594.7,0.3]
[1646932874044,1.95173588,2595.8,2594.8,0.1925]
[1646932874243,1.0,2595.8,2594.8,0.27758091]
[1646932874444,0.334,2595.9,2594.8,0.27758091]
[1646932874646,0.334,2595.9,2595.4,2.9364045]
[1646932874845,1.0,2595.7,2595.6,1.03555141]
[1646932876346,1.0,2595.7,2595.6,1.99896251]
[1646932878298,0.00397956,2595.8,2595.6,1.99896251]
[1646932878598,0.00397956,2595.8,2595.6,3.92590251]
[1646932879000,1.1649,2596.2,2595.6,3.92590251]
[1646932879401,0.00397953,2595.8,2595.6,3.92590251]
[1646932880201,1.1649,2596.2,2595.6,3.92590251]
[1646932880403,1.1649,2596.2,2595.7,1.92695]
[1646932880611,0.00369213,2595.8,2595.7,1.92695]
[1646932881444,5.52493315,2596.3,2595.7,1.92695]
[1646932881639,4.57319727,2596.3,2595.7,1.92695]
[1646932881839,0.00369211,2595.9,2595.7,1.92695]
[1646932882640,0.04204813,2596.0,2595.6,0.96374]
[1646932882841,0.00369209,2595.9,2595.6,0.96374]
[1646932883441,0.00369209,2595.9,2595.3,1.19568915]
[1646932883641,0.712295,2595.9,2595.3,1.19568915]
[1646932883846,1.71439104,2596.0,2595.3,1.19568915]
[1646932884047,0.00373724,2595.7,2595.3,1.27956571]
[1646932884245,0.00373724,2595.7,2595.6,0.96374]
[1646932884991,0.00097804,2595.9,2595.6,0.96374]
[1646932885391,0.00373722,2595.8,2595.6,0.96374]
[1646932886591,0.0037372,2595.8,2595.6,0.96374]
[1646932886793,0.0037372,2595.8,2595.7,0.0903675]
[1646932887394,0.00097804,2595.9,2595.7,0.0903675]
[1646932887794,0.00470559,2595.9,2595.7,0.0903675]
[1646932887995,0.00372755,2595.9,2595.7,0.2828675]
[1646932888196,0.00372755,2595.9,2595.8,0.96326]
[1646932888399,0.0014758,2596.8,2595.8,2.54216]
[1646932888663,0.0014758,2597.0,2595.9,0.08042736]
[1646932888859,1.0014758,2597.1,2596.7,1.01198077]
[1646932889071,1.0,2597.1,2596.8,0.07873564]
[1646932889457,1.96311,2597.1,2596.8,0.07873564]
[1646932890060,1.9657187,2597.1,2596.8,1.04182564]
[1646932890260,1.0026087,2597.1,2596.8,1.90837169]
[1646932890459,1.0026087,2597.1,2596.9,2.01609496]
[1646932890661,1.0026087,2597.1,2597.0,0.06935602]
[1646932891065,1.0,2597.1,2597.0,0.06935602]
[1646932891458,1.92615,2597.6,2597.0,1.03236602]
[1646932891665,0.00372863,2597.2,2597.1,0.08839946]
[1646932892502,0.00372863,2597.2,2597.0,0.96301]
[1646932892901,0.00372859,2597.3,2597.0,0.96301]
[1646932893304,13.19327827,2597.3,2596.6,1.92654]
[1646932893503,0.3864,2597.1,2596.6,1.92654]
[1646932893708,4.56200956,2597.0,2596.6,1.92654]
[1646932893905,0.3864,2596.8,2596.6,1.92654]
[1646932895207,0.38980576,2596.8,2596.6,1.92654]
[1646932896942,2.31670576,2596.8,2596.4,1.92672]
[1646932897147,0.20759681,2597.2,2596.5,0.96341]
[1646932897349,0.0014758,2597.3,2596.6,0.07624586]
[1646932897547,1.4223,2597.6,2596.6,0.26874586]
[1646932897548,0.00340667,2596.8,2596.6,0.26874586]
[1646932897949,0.01502564,2597.8,2596.8,1.92538]
[1646932898146,0.01502564,2597.8,2597.5,1.16398089]
[1646932898347,0.01502564,2597.8,2597.6,1.03552925]
[1646932898549,0.01502564,2597.8,2597.7,0.07063576]
[1646932898951,0.01502564,2597.8,2597.7,3.57063576]
[1646932898952,0.03005128,2597.8,2597.7,3.57063576]
[1646932899148,0.03005128,2597.8,2597.7,2.95830576]
[1646932899347,0.03005128,2597.8,2597.7,2.88767]
[1646932900198,0.0049028,2598.2,2597.7,6.38767]
[1646932900398,0.0049028,2598.2,2597.7,12.1276807]
[1646932900596,0.0049028,2598.2,2597.8,3.5]
[1646932900796,0.0049028,2598.2,2597.9,0.1923]
[1646932900994,0.0049028,2598.2,2597.9,2.1171]
[1646932901195,0.0049028,2598.2,2598.0,4.5]
[1646932901396,0.0049028,2598.2,2598.0,1.9624]
[1646932901601,0.0120942,2598.8,2598.6,0.98683276]
[1646932901800,0.0120942,2598.8,2598.7,3.5]
[1646932902000,0.0390923,2599.1,2598.7,3.5]
[1646932902201,0.0241884,2598.8,2598.7,4.961]
[1646932902500,0.008184,2599.4,2598.7,4.92329]
[1646932902698,0.0479156,2599.4,2598.7,6.67839]
[1646932902901,0.0479156,2599.4,2599.3,1.0]
[1646932903097,0.02262224,2599.6,2599.3,1.0]
[1646932903498,0.02262224,2599.6,2599.4,3.5]
[1646932903756,0.01080016,2599.8,2599.4,1.0]
[1646932903757,0.02160032,2599.8,2599.4,1.0]
[1646932903958,0.02160032,2599.8,2599.5,0.1923]
[1646932904161,0.02160032,2599.8,2599.7,1.0]
[1646932904960,0.02160032,2599.8,2599.5,1.92364]
[1646932905757,0.0040079,2599.6,2599.5,1.92364]
[1646932906661,0.02517616,2599.8,2599.5,1.92364]
[1646932907258,0.02160032,2599.8,2599.5,1.92364]
[1646932907496,0.02483621,2599.8,2599.5,1.92364]
[1646932907894,0.95019245,2599.9,2599.5,1.92364]
[1646932908899,12.1764,2599.7,2599.3,1.92436]
[1646932909098,0.96228,2599.7,2599.3,1.92436]
[1646932909500,0.96228,2599.7,2599.4,0.08968214]
[1646932909700,0.01329624,2599.9,2599.4,0.99758529]
[1646932909900,0.00095162,2599.6,2599.5,0.07655539]
[1646932910100,5.162e-05,2599.6,2599.5,3.57655539]
[1646932910300,5.162e-05,2599.6,2599.4,1.86998315]
[1646932910503,0.00238222,2599.7,2599.5,8.5]
[1646932911546,0.00238222,2599.7,2599.4,1.86998315]
[1646932913145,0.00238222,2599.7,2599.4,0.96208]
[1646932913953,0.00238222,2599.7,2599.4,1.92413]
[1646932914355,0.00238222,2599.7,2599.4,3.06204186]
[1646932914558,0.01587946,2599.9,2599.4,3.06204186]
[1646932914754,0.01990347,2599.9,2599.4,3.06204186]
[1646932914996,0.01732025,2599.9,2599.4,3.06204186]
[1646932915402,0.01732025,2599.9,2599.4,2.09999186]
[1646932915602,0.01732025,2599.9,2599.4,0.96208]
[1646932916002,0.02134436,2599.9,2599.4,0.96208]
[1646932916303,0.01732035,2599.9,2599.4,0.96208]
[1646932916503,1.94173035,2599.9,2599.4,0.96208]
[1646932917302,1.94541463,2599.9,2599.4,0.96208]
[1646932917504,14.11779052,2599.9,2599.3,1.92436]
[1646932917706,14.11779052,2599.9,2599.0,1.92455]
[1646932918302,0.3864,2599.7,2599.0,0.96238]
[1646932918504,1.34877,2599.7,2599.0,0.96238]
[1646932919147,0.91237,2599.7,2599.0,0.96238]
[1646932919551,0.3864,2599.5,2599.0,0.96238]
[1646932919752,0.3864,2599.5,2598.7,1.9247]
[1646932919753,0.96248,2599.4,2598.7,1.9247]
[1646932919948,13.13888,2599.4,2598.5,4.46254]
[1646932920149,13.13888,2599.4,2598.5,0.96254]
[1646932920150,13.59988,2599.4,2598.5,0.96254]
[1646932920352,0.1923,2599.3,2598.2,0.07907241]
[1646932920551,0.3864,2598.9,2598.2,3.5]
[1646932920752,0.3864,2598.9,2598.2,0.07724431]
[1646932920951,0.96268,2599.0,2598.2,0.07724431]
[1646932921151,0.96271,2598.8,2598.4,0.08589215]
[1646932921951,0.96271,2598.8,2598.2,0.08605948]
[1646932922399,0.96271,2598.8,2598.5,0.0763696]
[1646932922997,0.01394364,2599.1,2598.5,0.0763696]
[1646932923198,0.97631364,2599.1,2598.6,0.96233]
[1646932923397,0.97631364,2599.1,2598.7,0.08721132]
[1646932923596,0.96237,2599.1,2598.6,0.31822371]
[1646932923798,0.05419066,2599.0,2598.6,0.31822371]
[1646932923999,0.01394355,2599.2,2598.6,0.31822371]
[1646932924199,0.01394355,2599.2,2598.7,0.1923]
[1646932924400,0.01394355,2599.2,2598.8,0.96218]
[1646932924801,0.01394355,2599.2,2598.8,1.26218]
[1646932925007,0.01394355,2599.2,2598.8,2.224421]
[1646932925201,0.01440149,2599.4,2598.8,1.924421]
[1646932925602,0.97668149,2599.4,2598.9,0.96228]
[1646932926002,0.96228,2599.4,2598.9,0.96228]
[1646932926453,0.96228,2599.4,2599.2,0.88829435]
[1646932927255,0.96228,2599.4,2599.1,0.96217]
[1646932928358,0.96228,2599.4,2599.1,1.92432]
[1646932929358,1.92455,2599.7,2599.2,1.03726678]
[1646932929359,0.96209,2599.7,2599.2,1.03726678]
[1646932929560,0.96209,2599.7,2599.3,0.96207]
[1646932929760,0.96209,2599.7,2599.3,1.92417]
[1646932929995,0.0012681,2599.4,2599.3,1.92417]
[1646932930209,0.01555018,2599.9,2599.4,0.0799268]
[1646932930398,0.01555018,2599.9,2599.4,2.4646368]
[1646932930597,0.01555018,2599.9,2599.5,0.27623976]
[1646932930598,0.0155504,2599.9,2599.5,0.27623976]
[1646932930800,0.0155504,2599.9,2599.6,0.96178]
[1646932930998,0.0155504,2599.9,2599.7,0.08732864]
[1646932931198,0.0155504,2599.9,2599.8,0.89829726]
[1646932931603,0.0155504,2599.9,2599.8,1.19829726]
[1646932931803,0.01796917,2599.9,2599.8,4.69829726]
[1646932932002,0.01571501,2599.9,2599.8,4.69829726]
[1646932932202,0.01571501,2599.9,2599.8,2.16007726]
[1646932932403,0.0246394,2601.1,2599.9,13.0]
[1646932932605,0.0246394,2601.1,2600.3,0.01210046]
[1646932932606,0.03834112,2600.9,2600.3,0.01210046]
[1646932932811,0.0246394,2601.1,2600.4,1.42228]
[1646932933005,0.38834402,2601.6,2600.8,14.5]
[1646932933006,0.02596952,2601.5,2600.8,14.5]
[1646932933205,0.0398658,2602.6,2601.2,18.0]
[1646932933405,0.0398658,2602.6,2601.1,0.97375155]
[1646932933406,0.02671312,2602.4,2601.8,0.01239686]
[1646932933660,0.0194232,2602.8,2602.0,2.98944178]
[1646932933856,0.0194232,2602.8,2602.1,0.653]
[1646932934054,0.0194232,2602.8,2602.2,0.87451465]
[1646932934253,0.0194232,2602.8,2602.3,1.6135099]
[1646932934254,0.04376861,2602.5,2602.3,1.6135099]
[1646932934457,0.0693522,2603.2,2602.3,1.6135099]
[1646932934458,3.6241069,2604.4,2602.5,0.3864]
[1646932934665,1.38939708,2604.8,2602.5,0.3864]
[1646932934666,0.0119486,2604.2,2603.8,0.01269254]
[1646932934856,1.31368077,2605.5,2604.0,0.96006]
[1646932935059,0.93800264,2605.3,2604.1,0.473564]
[1646932935260,0.02854536,2604.7,2603.5,11.46]
[1646932935460,0.02854536,2604.7,2603.7,0.461]
[1646932935655,0.02854536,2604.7,2603.8,3.5]
[1646932935656,0.1918,2604.6,2603.8,3.5]
[1646932935857,0.1918,2604.6,2603.7,3.5]
[1646932936057,0.00146579,2604.5,2603.5,0.461]
[1646932936255,0.192,2604.4,2603.6,3.5]
[1646932936458,0.02854536,2604.7,2603.7,0.461]
[1646932936659,0.02854536,2604.7,2603.8,4.46022]
[1646932936857,0.02854536,2604.7,2603.9,0.461]
[1646932937057,0.0405828,2604.7,2604.0,6.38009]
[1646932937259,0.0405828,2604.7,2604.1,1.42086]
[1646932937521,0.0405828,2604.7,2604.6,1.02443272]
[1646932937721,0.05670814,2604.7,2604.6,2.44528972]
[1646932938425,0.05670814,2604.7,2604.6,3.40514972]
[1646932939222,0.05670814,2604.7,2604.6,1.48543272]
[1646932939625,0.0405828,2604.7,2604.6,1.48543272]
[1646932940025,0.0405828,2604.7,2604.6,5.28543272]
[1646932940327,0.00403168,2604.8,2604.6,6.24524272]
[1646932940530,0.03464903,2605.2,2604.6,2.74524272]
[1646932940725,0.01859264,2604.9,2604.6,6.24524272]
[1646932940926,0.01859264,2604.9,2604.6,3.74524272]
[1646932941148,0.07747639,2605.2,2604.6,1.761]
[1646932941352,0.07747639,2605.2,2604.6,8.14002]
[1646932941552,0.07747639,2605.2,2604.7,0.95981]
[1646932941748,0.00344452,2604.8,2604.7,1.25981]
[1646932941948,0.00344452,2604.8,2604.7,5.22081]
[1646932942348,0.00344452,2604.8,2604.7,6.12765678]
[1646932942553,0.00344452,2604.8,2604.7,1.461]
[1646932942755,0.00344452,2604.8,2604.7,1.0]
[1646932943553,0.1918,2605.1,2604.7,1.0]
[1646932943754,0.20402318,2604.0,2603.6,0.9094]
[1646932943954,0.20402318,2604.0,2603.7,3.5]
[1646932945005,0.20402318,2604.0,2603.6,0.2566]
[1646932945611,0.15402318,2604.0,2603.6,0.2566]
[1646932945814,0.15402318,2604.0,2603.9,1.0]
[1646932949554,0.15402318,2604.0,2603.8,0.00403582]
[1646932949555,0.15402318,2604.0,2603.8,0.01547645]
[1646932950254,0.15402318,2604.0,2603.8,0.01144063]
[1646932950657,0.15402318,2604.0,2603.8,0.0153554]
[1646932951054,0.10402318,2604.0,2603.8,0.0153554]
[1646932951455,0.10402318,2604.0,2603.8,0.01144063]
[1646932951857,0.10402318,2604.0,2603.8,0.0153554]
[1646932952702,0.10402318,2604.0,2603.8,0.01144063]
[1646932952900,0.10402318,2604.0,2603.8,0.0153554]
[1646932953102,3.5784,2603.9,2603.8,5.54e-05]
[1646932953303,0.0007446,2603.6,2602.6,0.192]
[1646932953506,0.3864,2603.5,2602.6,3.5]
[1646932953705,3.3864,2603.1,2601.5,0.08461454]
[1646932953905,0.192,2603.0,2601.6,0.192]
[1646932954105,3.3864,2602.6,2601.5,1.25564893]
[1646932954306,3.3864,2602.6,2601.5,0.08461454]
[1646932954307,0.3864,2602.6,2601.5,0.08461454]
[1646932954505,0.3864,2602.6,2601.2,4.692]
[1646932954506,4.34769,2602.4,2601.3,0.07607374]
[1646932954706,4.34769,2602.4,2601.4,0.192]
[1646932955306,0.04548696,2602.3,2601.4,0.192]
[1646932955506,0.04548696,2602.3,2601.1,3.93905087]
[1646932955507,0.3864,2602.1,2601.1,0.43905087]
[1646932955710,0.42819638,2602.0,2601.1,0.43905087]
[1646932955910,0.04784462,2601.9,2601.1,0.43905087]
[1646932956166,0.04655136,2601.5,2601.1,0.43905087]
[1646932956351,0.04667154,2601.5,2601.1,0.43905087]
[1646932956854,2.30671136,2601.4,2601.1,0.43905087]
[1646932957858,2.30671136,2601.4,2601.1,0.44308824]
[1646932958258,2.73501136,2601.4,2601.1,0.44308824]
[1646932958857,1.34479136,2601.3,2601.1,0.43905087]
[1646932959059,0.05257838,2601.2,2601.1,0.44308824]
[1646932959261,0.05257838,2601.2,2601.1,0.00403737]
[1646932959902,0.00257838,2601.2,2601.1,0.00403737]
[1646932960104,1.34479136,2601.3,2601.1,0.00403737]
[1646932960402,1.34479136,2601.3,2601.0,0.00403743]
[1646932960804,4.23042136,2601.3,2601.0,0.00403743]
[1646932961307,4.23042136,2601.3,2600.2,0.08054136]
[1646932961504,4.23042136,2601.3,2601.0,0.00403743]
[1646932961702,4.42262136,2601.3,2601.0,0.00403743]
[1646932961906,0.1922,2601.2,2601.0,0.00403743]
[1646932962108,1.53696136,2601.2,2601.0,0.00403743]
[1646932962405,1.53696136,2601.2,2600.5,0.07910868]
[1646932962806,1.53696136,2601.2,2601.0,0.00381061]
[1646932963752,0.00446875,2600.9,2600.5,0.07910868]
[1646932964154,0.96629875,2600.9,2600.5,0.07910868]
[1646932965156,0.96629875,2600.9,2600.6,0.00381081]
[1646932965964,0.96629875,2600.9,2600.5,0.07910868]
[1646932966359,0.96629875,2600.9,2600.6,0.0037689]
[1646932966563,0.96629875,2600.9,2600.7,0.97719293]
[1646932966759,0.96629875,2600.9,2600.8,0.08620379]
[1646932967400,0.96629875,2600.9,2600.6,0.08421601]
[1646932967600,0.96629875,2600.9,2600.7,0.00376886]
[1646932968401,0.96629875,2600.9,2600.6,0.08421601]
[1646932968603,0.96629875,2600.9,2600.7,0.00376888]
[1646932969607,0.96629875,2600.9,2600.6,0.08421601]
[1646932969806,0.97708464,2600.9,2600.7,0.00377216]
[1646932970808,0.97708464,2600.9,2600.6,0.08421601]
[1646932971258,1.36348464,2600.9,2600.7,0.00377216]
[1646932971461,1.31348464,2600.9,2600.7,0.00377216]
[1646932971859,1.31348464,2600.9,2600.2,0.07365545]
[1646932972057,0.96204,2600.6,2600.2,0.07365545]
[1646932977109,0.96204,2600.6,2600.3,0.00395203]
[1646932977306,0.96204,2600.6,2600.2,0.07365545]
[1646932977603,0.96204,2600.6,2599.7,0.1922]
[1646932977805,0.3864,2600.5,2599.7,0.1922]
[1646932978005,0.9621,2600.3,2599.7,0.1922]
[1646932979456,0.9621,2600.3,2599.8,1.04612207]
[1646932979659,0.9621,2600.3,2599.9,0.08952391]
[1646932981156,0.9621,2600.3,2599.4,0.087083]
[1646932981856,0.9621,2600.3,2599.8,1.00321076]
[1646932982058,0.9621,2600.3,2599.9,0.08189358]
[1646932982261,0.9621,2600.3,2600.0,0.0865442]
[1646932983303,0.01054235,2600.5,2600.2,1.18580395]
[1646932983503,0.01054235,2600.5,2600.3,0.08638145]
[1646932983708,0.01054235,2600.5,2600.4,0.08851646]
[1646932983909,0.00221954,2600.5,2600.4,3.961]
[1646932984112,0.00221954,2600.5,2600.4,0.461]
[1646932985108,0.9617,2600.8,2600.4,0.461]
[1646932985514,0.9617,2600.8,2600.3,4.1461208]
[1646932985909,0.00690929,2600.9,2600.4,1.9232963]
[1646932986161,0.00690929,2600.9,2600.6,1.15693044]
[1646932987360,0.00690929,2600.9,2600.6,2.11851944]
[1646932987958,0.00690929,2600.9,2600.6,1.923179]
[1646932988159,0.00690929,2600.9,2600.6,0.96159]
[1646932988963,0.00690929,2600.9,2600.6,1.9018872]
[1646932989897,0.00158017,2600.8,2600.6,0.96159]
[1646932990898,0.00158017,2600.8,2600.6,1.97006408]
[1646932993002,0.00158017,2600.8,2600.6,0.96159]
[1646932993403,1.92334,2601.2,2600.6,0.96159]
[1646932993656,1.92334,2601.2,2600.4,0.9617]
[1646932993657,0.5786,2601.4,2600.4,0.9617]
[1646932993851,1.52729826,2601.3,2600.4,0.9617]
[1646932994052,0.3864,2601.3,2600.4,0.9617]
[1646932994353,0.3864,2601.3,2600.6,0.07367575]
[1646932994555,0.3864,2601.1,2600.2,0.08426229]
[1646932994753,14.8039506,2601.4,2600.2,0.08426229]
[1646932994754,0.3864,2600.9,2600.2,0.00348928]
[1646932995052,0.1922,2601.3,2600.0,0.0840015]
[1646932995053,1.3351385,2600.8,2600.0,0.0840015]
[1646932995256,1.3351385,2600.7,2600.0,0.0840015]
[1646932995454,0.95029841,2600.6,2600.2,0.0034895]
[1646932995657,1.91232841,2600.6,2600.2,0.0034895]
[1646932995954,0.95029841,2600.5,2600.2,0.0034895]
[1646932996154,0.95029841,2600.5,2599.8,0.06991915]
[1646932996355,1.33669841,2600.5,2600.2,0.00348902]
[1646932996558,0.96212,2600.3,2600.2,0.00348902]
[1646932996758,1.91241841,2600.3,2600.2,0.00348902]
[1646932996960,2.29881841,2600.3,2600.2,0.00348902]
[1646932997260,2.29881841,2600.3,2599.7,0.08955871]
[1646932997261,5.29881841,2600.3,2599.7,0.08955871]
[1646932997504,5.29881841,2600.3,2599.0,0.08455358]
[1646932997505,0.3864,2600.0,2599.0,0.08455358]
[1646932997806,0.3864,2600.0,2598.9,0.3843]
[1646932997807,2.88711,2599.7,2599.2,0.08791495]
[1646932998101,2.88711,2599.7,2599.4,0.07397606]
[1646932998301,0.95377089,2599.6,2599.4,0.07397606]
[1646932998502,0.95377089,2599.6,2598.9,0.07542972]
[1646932998708,1.92472,2599.7,2599.0,0.61862491]
[1646932998709,3.26432884,2599.5,2599.0,0.61862491]
[1646932998908,1.53181884,2599.4,2599.3,0.00348133]
[1646932999405,3.45691884,2599.4,2599.3,0.00348133]
[1646932999609,3.3789828,2599.4,2598.7,0.61945323]
[1646932999909,0.83873898,2599.3,2599.1,0.0846956]
[1646933000110,1.29764457,2599.8,2599.1,3.5846956]
[1646933000111,0.00146551,2599.8,2599.1,3.5846956]
[1646933000309,1.9242,2600.0,2599.2,0.07395136]
[1646933000504,1.9242,2600.0,2598.9,0.26558009]
[1646933000706,1.9242,2600.0,2598.9,0.72658009]
[1646933000905,2.3106,2600.0,2599.1,1.92409]
[1646933001173,0.96208,2599.8,2599.3,2.00683786]
[1646933001359,1.34848,2599.8,2599.5,0.07763088]
[1646933001556,1.34848,2599.8,2599.5,0.00348263]
[1646933001756,1.33823024,2599.8,2599.5,0.00348263]
[1646933001959,1.33823024,2599.8,2598.8,0.1922]
[1646933002358,0.3864,2599.6,2599.0,0.07954324]
[1646933002562,0.3864,2599.6,2599.5,0.00348261]
[1646933002563,12.1764,2599.6,2599.5,0.00348261]
[1646933002760,12.1764,2599.4,2598.3,0.08184411]
[1646933002969,0.06856,2599.3,2598.0,0.26437389]
[1646933003162,0.07002551,2599.3,2598.0,0.26437389]
[1646933003459,0.3864,2598.8,2598.0,0.26437389]
[1646933003864,0.3864,2598.7,2598.0,0.07207389]
[1646933004067,0.3864,2598.7,2597.7,0.1923]
[1646933004068,0.3864,2598.7,2597.7,1.22980356]
[1646933004266,0.3864,2598.7,2597.8,0.07041466]
[1646933004466,0.45644551,2598.9,2597.8,0.07041466]
[1646933004903,0.45644551,2598.9,2598.1,0.00347132]
[1646933005103,0.3864,2598.6,2598.1,0.00347132]
[1646933005303,1.34915,2598.6,2598.1,0.00347132]
[1646933005705,1.34915,2598.6,2597.8,0.07041466]
[1646933005905,13.13915,2598.6,2597.8,0.07041466]
[1646933006108,12.1764,2598.4,2597.6,0.34201546]
[1646933006310,0.3864,2598.2,2597.6,0.34201546]
[1646933006710,0.3864,2598.1,2597.6,0.34201546]
[1646933006910,0.96283,2598.2,2597.6,0.2698]
[1646933007710,0.96283,2598.2,2597.6,0.33900792]
[1646933008313,0.96294,2598.1,2597.6,0.33900792]
[1646933008512,0.96294,2598.1,2597.8,0.00388334]
[1646933009358,0.96294,2598.1,2597.9,1.03226928]
[1646933009558,0.96294,2598.1,2598.0,0.07846208]
[1646933009757,0.3864,2598.5,2598.0,0.07846208]
[1646933009958,0.00146551,2598.7,2598.0,0.07846208]
[1646933010158,0.00146551,2598.9,2598.3,0.94486767]
[1646933010357,0.00146551,2599.2,2598.4,0.07642745]
[1646933010561,0.06862,2599.1,2598.4,0.07642745]
[1646933010763,0.06862,2599.2,2598.4,0.07642745]
[1646933010960,1.92494,2598.9,2598.7,1.10783822]
[1646933011159,0.96243,2599.0,2598.8,0.08604292]
[1646933011766,0.00146551,2599.6,2598.8,0.47244292]
[1646933011968,1.26689997,2599.9,2599.3,0.88682213]
[1646933011969,1.26836548,2599.9,2599.3,0.88682213]
[1646933012160,1.26836548,2599.9,2599.5,0.9620283]
[1646933012161,1.26689997,2599.9,2599.5,0.9620283]
[1646933012409,0.13819997,2599.9,2599.6,0.07758294]
[1646933014118,1.10022997,2599.9,2599.6,0.07758294]
[1646933015416,0.96203,2599.9,2599.6,0.07758294]
[1646933016776,0.96203,2599.9,2599.0,1.9241887]
[1646933016975,0.96203,2599.9,2599.4,0.00344688]
[1646933017176,1.34843,2599.9,2599.4,0.00344688]
[1646933017376,3.8864,2599.8,2599.4,0.00344688]
[1646933017776,3.8864,2599.8,2598.5,2.88693]
[1646933017777,2.88694,2599.8,2599.6,0.07214984]
[1646933017977,2.88789551,2600.3,2599.6,0.07214984]
[1646933017978,0.96339551,2600.1,2599.6,0.53314984]
[1646933018179,0.96193,2600.1,2599.9,1.1058347]
[1646933018380,1.92384,2600.6,2600.0,0.09019622]
[1646933018579,0.01524516,2600.8,2600.0,0.09019622]
[1646933018782,0.01377965,2600.8,2600.0,1.05200622]
[1646933018981,0.01377965,2600.8,2600.2,0.0873609]
[1646933019181,4.52001551,2601.1,2600.2,0.0873609]
[1646933019182,5.48027,2601.1,2600.2,0.0873609]
[1646933019381,0.01379614,2600.9,2600.4,1.18218204]
[1646933019582,0.01379614,2600.9,2600.8,1.13847521]
[1646933019782,0.01379614,2600.9,2600.8,0.08349511]
[1646933020013,0.98636107,2600.9,2600.5,0.06937254]
[1646933020213,0.96172,2601.1,2600.5,0.06937254]
[1646933020411,0.97252527,2601.0,2600.7,0.96169]
[1646933020610,0.97252527,2600.9,2600.7,0.07096321]
[1646933022113,0.96173,2601.0,2600.7,0.07096321]
[1646933022312,0.97072236,2600.9,2600.7,0.07096321]
[1646933023215,0.97072236,2600.9,2600.8,0.08272548]
[1646933023860,0.96173,2601.0,2600.8,0.08272548]
[1646933024459,0.96173,2601.0,2600.8,0.09411255]
[1646933024861,1.9235,2601.1,2600.8,0.09411255]
[1646933025061,0.97062144,2601.0,2600.8,0.09411255]
[1646933026962,0.97062144,2601.0,2600.5,0.40613877]
[1646933026963,1.93233144,2601.0,2600.5,0.40613877]
[1646933027163,0.96171,2601.0,2600.5,0.40613877]
[1646933028201,0.96171,2601.0,2600.6,0.96169]
[1646933029406,0.93967226,2600.9,2600.6,0.96169]
[1646933029606,0.93967226,2600.9,2600.8,0.01165746]
[1646933030208,0.93967226,2600.9,2600.1,0.08428074]
[1646933030706,0.93967226,2600.9,2599.9,0.07185855]
[1646933031356,0.93967226,2600.9,2600.1,0.07512186]
[1646933031954,0.96186,2600.8,2600.1,0.07512186]
[1646933032253,0.93967226,2600.7,2600.1,0.07512186]
[1646933033057,1.92372,2600.6,2600.1,1.03695596]
[1646933035002,1.92372,2600.6,2600.1,0.9618341]
[1646933035201,1.92372,2600.6,2600.1,0.9618368]
[1646933035803,1.92372,2600.6,2600.0,2.01351822]
[1646933035804,0.94144955,2600.5,2600.0,2.01351822]
[1646933036408,1.92372,2600.6,2600.0,2.01351822]
[1646933036703,0.94173082,2600.5,2600.0,2.97087171]
[1646933036903,1.90355082,2600.5,2600.1,0.9618365]
[1646933037104,0.96182,2600.5,2600.1,0.9618365]
[1646933038104,0.96182,2600.5,2600.2,0.96178]
[1646933038304,0.96182,2600.5,2600.4,0.91510518]
[1646933038507,0.96182,2600.5,2600.2,2.8851936]
[1646933039959,0.9972265,2600.5,2600.4,0.93984932]
[1646933040160,0.9972265,2600.5,2600.2,2.8851936]
[1646933041361,0.9972265,2600.5,2600.2,0.96178]
[1646933048463,0.9972265,2600.5,2600.3,0.94036404]
[1646933048664,0.9972265,2600.5,2600.3,1.90210714]
[1646933049164,0.9972265,2600.5,2600.3,0.9617431]
[1646933049666,0.9972265,2600.5,2599.4,1.00346782]
[1646933049667,0.19241403,2600.2,2599.4,1.00346782]
[1646933049905,0.96203,2600.1,2599.5,0.71055122]
[1646933050106,0.96203,2600.1,2599.5,0.06968559]
[1646933050306,0.96203,2600.1,2599.6,0.64096369]
[1646933050507,0.96203,2600.1,2599.5,0.06968559]
[1646933051109,0.96203,2600.1,2599.6,1.92384]
[1646933051306,0.96203,2600.1,2599.7,0.9620072]
[1646933052310,0.96203,2600.1,2599.4,0.0034673]
[1646933052311,0.05323492,2599.9,2599.4,0.0034673]
[1646933052508,1.01545492,2599.9,2599.4,0.0034673]
[1646933052713,1.01545492,2599.9,2599.2,0.64268406]
[1646933052714,0.97482167,2599.8,2599.2,1.60486646]
[1646933052909,0.97482167,2599.8,2599.3,0.64268406]
[1646933052910,0.04893437,2599.8,2599.3,0.64268406]
[1646933053110,0.04893437,2599.8,2599.4,0.0034674]